[Event "Late-Titled-Tuesday-Blitz-February-06-2024"]
[Site "Chess.com"]
[Date "2024.02.06"]
[Round "1"]
[White "mc4chess"]
[Black "lluiss"]
[Result "0-1"]
[WhiteElo "2555"]
[BlackElo "2147"]
[TimeControl "180+1"]
[EndTime "14:07:33 PST"]
[Termination "lluiss won by resignation"]

1. b3 {[%clk 0:03:00.2]} 1... d5 {[%clk 0:02:57.5]} 2. Bb2 {[%clk 0:03:00.3]}
2... Bf5 {[%clk 0:02:56.9]} 3. e3 {[%clk 0:03:00.2]} 3... e6 {[%clk 0:02:55.4]}
4. Nf3 {[%clk 0:02:59.6]} 4... Nf6 {[%clk 0:02:55.2]} 5. d4 {[%clk 0:02:55.6]}
5... h6 {[%clk 0:02:54.8]} 6. Bd3 {[%clk 0:02:55.8]} 6... Bxd3 {[%clk 0:02:50]}
7. cxd3 {[%clk 0:02:56.7]} 7... Be7 {[%clk 0:02:47.7]} 8. O-O {[%clk 0:02:56.4]}
8... O-O {[%clk 0:02:47.5]} 9. Nc3 {[%clk 0:02:50.3]} 9... c5 {[%clk 0:02:40.2]}
10. dxc5 {[%clk 0:02:49.1]} 10... Bxc5 {[%clk 0:02:39]} 11. Rc1 {[%clk
0:02:47.8]} 11... Nbd7 {[%clk 0:02:27.2]} 12. Qe2 {[%clk 0:02:28.1]} 12... Qe7
{[%clk 0:02:25.9]} 13. Nb5 {[%clk 0:02:07.8]} 13... a6 {[%clk 0:02:15.1]} 14.
Nbd4 {[%clk 0:02:06.7]} 14... Rfc8 {[%clk 0:01:58.6]} 15. Rc2 {[%clk 0:02:02]}
15... Ba3 {[%clk 0:01:57.8]} 16. Rfc1 {[%clk 0:01:55.7]} 16... Rxc2 {[%clk
0:01:54.5]} 17. Qxc2 {[%clk 0:01:55]} 17... Bd6 {[%clk 0:01:40.8]} 18. h3 {[%clk
0:01:45.8]} 18... Nb6 {[%clk 0:01:40.6]} 19. e4 {[%clk 0:00:50.5]} 19... Ba3
{[%clk 0:00:52.4]} 20. e5 {[%clk 0:00:42.1]} 20... Nfd7 {[%clk 0:00:50.4]} 21.
Ne2 {[%clk 0:00:28.2]} 21... Rc8 {[%clk 0:00:46.7]} 22. Qb1 {[%clk 0:00:28.4]}
22... Bxb2 {[%clk 0:00:36.8]} 23. Qxb2 {[%clk 0:00:26]} 23... Qd8 {[%clk
0:00:30.3]} 24. d4 {[%clk 0:00:25]} 24... Rxc1+ {[%clk 0:00:28.3]} 25. Nxc1
{[%clk 0:00:25.9]} 25... Qc7 {[%clk 0:00:27.8]} 26. Nd3 {[%clk 0:00:26.1]} 26...
Nc8 {[%clk 0:00:19.2]} 27. a4 {[%clk 0:00:24.9]} 27... Ne7 {[%clk 0:00:14.9]}
28. g4 {[%clk 0:00:24]} 28... Nc6 {[%clk 0:00:14.1]} 29. b4 {[%clk 0:00:21.4]}
29... Qb6 {[%clk 0:00:11.8]} 30. b5 {[%clk 0:00:20]} 30... axb5 {[%clk
0:00:10.9]} 31. axb5 {[%clk 0:00:20.9]} 31... Na7 {[%clk 0:00:10.9]} 32. Qa3
{[%clk 0:00:17.8]} 32... Nxb5 {[%clk 0:00:09.2]} 33. Qe7 {[%clk 0:00:18]} 33...
Nf8 {[%clk 0:00:06.1]} 34. g5 {[%clk 0:00:18.5]} 34... Nxd4 {[%clk 0:00:04.1]}
35. Nh4 {[%clk 0:00:17.8]} 35... Ne2+ {[%clk 0:00:03.5]} 36. Kf1 {[%clk
0:00:18.2]} 36... Nf4 {[%clk 0:00:03.6]} 37. Nxf4 {[%clk 0:00:18.3]} 37... Qb1+
{[%clk 0:00:03.2]} 38. Kg2 {[%clk 0:00:15.3]} 38... Qe4+ {[%clk 0:00:04.1]} 39.
Kg3 {[%clk 0:00:16]} 39... Qxe5 {[%clk 0:00:04]} 40. Qxf8+ {[%clk 0:00:08.7]}
40... Kxf8 {[%clk 0:00:02.9]} 41. Ng6+ {[%clk 0:00:09.6]} 41... fxg6 {[%clk
0:00:01.9]} 0-1

[Event "Late-Titled-Tuesday-Blitz-February-06-2024"]
[Site "Chess.com"]
[Date "2024.02.06"]
[Round "1"]
[White "Statham_01"]
[Black "mjelcic"]
[Result "1-0"]
[WhiteElo "2592"]
[BlackElo "2207"]
[TimeControl "180+1"]
[EndTime "14:07:34 PST"]
[Termination "Statham_01 won by resignation"]

1. e4 {[%clk 0:03:00.6]} 1... g6 {[%clk 0:02:58.2]} 2. d4 {[%clk 0:03:00.4]}
2... Bg7 {[%clk 0:02:58.2]} 3. Nc3 {[%clk 0:03:01]} 3... c5 {[%clk 0:02:58.5]}
4. Nf3 {[%clk 0:03:00]} 4... cxd4 {[%clk 0:02:58.5]} 5. Nxd4 {[%clk 0:03:00.9]}
5... Nc6 {[%clk 0:02:58.8]} 6. Be3 {[%clk 0:03:00.9]} 6... Nf6 {[%clk
0:02:57.7]} 7. Nxc6 {[%clk 0:03:01.1]} 7... bxc6 {[%clk 0:02:53.1]} 8. e5 {[%clk
0:03:01.6]} 8... Ng8 {[%clk 0:02:44.5]} 9. Bd4 {[%clk 0:03:01.5]} 9... Qc7
{[%clk 0:02:43.5]} 10. e6 {[%clk 0:02:58.1]} 10... Bxd4 {[%clk 0:02:38.3]} 11.
Qxd4 {[%clk 0:02:59]} 11... Nf6 {[%clk 0:02:37.7]} 12. exf7+ {[%clk 0:02:52.7]}
12... Kxf7 {[%clk 0:02:38.6]} 13. O-O-O {[%clk 0:02:50.9]} 13... e5 {[%clk
0:02:30.8]} 14. Qc5 {[%clk 0:02:16.9]} 14... Re8 {[%clk 0:02:13.8]} 15. Bc4+
{[%clk 0:02:12.2]} 15... Kg7 {[%clk 0:02:11.3]} 16. Rhe1 {[%clk 0:02:11.8]}
16... Rb8 {[%clk 0:02:04.9]} 17. f4 {[%clk 0:02:05.9]} 17... Qb6 {[%clk
0:01:54]} 18. Qxb6 {[%clk 0:01:57.3]} 18... axb6 {[%clk 0:01:52.5]} 19. fxe5
{[%clk 0:01:57.5]} 19... Ng4 {[%clk 0:01:52.1]} 20. e6 {[%clk 0:01:50.4]} 20...
d5 {[%clk 0:01:51.2]} 21. h3 {[%clk 0:01:21.6]} 21... dxc4 {[%clk 0:01:38.5]}
22. hxg4 {[%clk 0:01:21.7]} 22... Rxe6 {[%clk 0:01:38.6]} 23. g5 {[%clk
0:01:08.5]} 23... Rxe1 {[%clk 0:01:12.5]} 24. Rxe1 {[%clk 0:01:09.4]} 24... Kf7
{[%clk 0:01:11]} 25. Ne4 {[%clk 0:01:07]} 25... Bf5 {[%clk 0:01:03.7]} 26. Nd6+
{[%clk 0:01:06.2]} 26... Kf8 {[%clk 0:01:01.3]} 27. Nxc4 {[%clk 0:00:56]} 27...
b5 {[%clk 0:00:44.3]} 28. Nd6 {[%clk 0:00:55.8]} 28... Ra8 {[%clk 0:00:35.7]}
29. a3 {[%clk 0:00:52.6]} 29... b4 {[%clk 0:00:32.4]} 30. axb4 {[%clk
0:00:30.7]} 30... Ra1+ {[%clk 0:00:30.7]} 31. Kd2 {[%clk 0:00:31.2]} 31... Rxe1
{[%clk 0:00:30.8]} 32. Kxe1 {[%clk 0:00:32.1]} 32... Bxc2 {[%clk 0:00:31]} 33.
Kd2 {[%clk 0:00:30.9]} 33... Bb3 {[%clk 0:00:29.2]} 34. Kc3 {[%clk 0:00:29.7]}
34... Bd5 {[%clk 0:00:29.2]} 35. g3 {[%clk 0:00:29]} 35... Ke7 {[%clk
0:00:29.5]} 36. Nb7 {[%clk 0:00:28.3]} 36... Ke6 {[%clk 0:00:28.8]} 37. g4
{[%clk 0:00:23.7]} 37... Ke5 {[%clk 0:00:27.7]} 38. Nd8 {[%clk 0:00:15.2]} 38...
Kf4 {[%clk 0:00:25.4]} 39. Kd4 {[%clk 0:00:15.6]} 39... Kxg5 {[%clk 0:00:24]}
40. b5 {[%clk 0:00:14.5]} 40... Bf3 {[%clk 0:00:13.3]} 41. b6 {[%clk 0:00:13.5]}
41... c5+ {[%clk 0:00:12.2]} 42. Kxc5 {[%clk 0:00:14.1]} 42... Kxg4 {[%clk
0:00:12.8]} 43. Nc6 {[%clk 0:00:13.6]} 43... h5 {[%clk 0:00:10.3]} 44. b7 {[%clk
0:00:14]} 44... h4 {[%clk 0:00:11.1]} 45. b8=Q {[%clk 0:00:14.4]} 1-0

[Event "Late-Titled-Tuesday-Blitz-February-06-2024"]
[Site "Chess.com"]
[Date "2024.02.06"]
[Round "1"]
[White "Nick12772"]
[Black "GMAkobianSTL"]
[Result "1/2-1/2"]
[WhiteElo "2384"]
[BlackElo "2697"]
[TimeControl "180+1"]
[EndTime "14:07:35 PST"]
[Termination "Game drawn by repetition"]

1. Nf3 {[%clk 0:03:00.9]} 1... d5 {[%clk 0:02:58.1]} 2. g3 {[%clk 0:03:01.1]}
2... c5 {[%clk 0:02:57.7]} 3. Bg2 {[%clk 0:03:01.1]} 3... Nc6 {[%clk 0:02:58.3]}
4. d4 {[%clk 0:03:01.4]} 4... Bg4 {[%clk 0:02:57.2]} 5. Ne5 {[%clk 0:03:00.7]}
5... Bh5 {[%clk 0:02:55.6]} 6. Nxc6 {[%clk 0:02:59.1]} 6... bxc6 {[%clk
0:02:55.2]} 7. c4 {[%clk 0:02:55.5]} 7... e6 {[%clk 0:02:54.8]} 8. cxd5 {[%clk
0:02:55.4]} 8... cxd5 {[%clk 0:02:53.8]} 9. Nc3 {[%clk 0:02:53.8]} 9... Nf6
{[%clk 0:02:52.9]} 10. Bg5 {[%clk 0:02:36.9]} 10... Rc8 {[%clk 0:02:48.2]} 11.
Bxf6 {[%clk 0:02:31.1]} 11... gxf6 {[%clk 0:02:47.3]} 12. O-O {[%clk 0:02:25.5]}
12... f5 {[%clk 0:02:42.2]} 13. Qd2 {[%clk 0:02:02.8]} 13... Bg7 {[%clk
0:02:37.9]} 14. dxc5 {[%clk 0:01:56.6]} 14... Rxc5 {[%clk 0:02:37.1]} 15. e3
{[%clk 0:01:57.1]} 15... O-O {[%clk 0:02:34.5]} 16. Rac1 {[%clk 0:01:57]} 16...
Qb8 {[%clk 0:02:12.5]} 17. b3 {[%clk 0:01:32.7]} 17... Rfc8 {[%clk 0:01:55]} 18.
Ne2 {[%clk 0:01:32.6]} 18... Bxe2 {[%clk 0:01:43.3]} 19. Rxc5 {[%clk 0:01:32.3]}
19... Rxc5 {[%clk 0:01:41.6]} 20. Qxe2 {[%clk 0:01:32.1]} 20... Qc7 {[%clk
0:01:41.5]} 21. Rd1 {[%clk 0:01:27.9]} 21... a5 {[%clk 0:01:36.7]} 22. h4 {[%clk
0:01:23.7]} 22... Be5 {[%clk 0:01:31.9]} 23. Rd2 {[%clk 0:01:17.2]} 23... Rc1+
{[%clk 0:01:30]} 24. Kh2 {[%clk 0:01:17.1]} 24... Kg7 {[%clk 0:01:27.8]} 25. Qh5
{[%clk 0:01:16.9]} 25... h6 {[%clk 0:01:27.4]} 26. Qe2 {[%clk 0:01:08.6]} 26...
Qc3 {[%clk 0:01:13.9]} 27. Bf3 {[%clk 0:01:02.8]} 27... Qa1 {[%clk 0:01:12.4]}
28. Rd1 {[%clk 0:00:53.7]} 28... Rxd1 {[%clk 0:01:11.3]} 29. Qxd1 {[%clk
0:00:54.6]} 29... Qxa2 {[%clk 0:01:08.4]} 30. Kg2 {[%clk 0:00:54.6]} 30... Bc3
{[%clk 0:01:05.5]} 31. Be2 {[%clk 0:00:46.3]} 31... Qb2 {[%clk 0:01:03.6]} 32.
Bb5 {[%clk 0:00:44.1]} 32... Kf8 {[%clk 0:00:58.9]} 33. Ba4 {[%clk 0:00:43.7]}
33... Ke7 {[%clk 0:00:55.2]} 34. Qh5 {[%clk 0:00:40.5]} 34... Be1 {[%clk
0:00:52.1]} 35. Qf3 {[%clk 0:00:40.7]} 35... Qc2 {[%clk 0:00:40.7]} 36. Qf4
{[%clk 0:00:38.3]} 36... Qe4+ {[%clk 0:00:40.6]} 37. Qxe4 {[%clk 0:00:38.3]}
37... fxe4 {[%clk 0:00:40.9]} 38. g4 {[%clk 0:00:32.8]} 38... Kf6 {[%clk
0:00:29.3]} 39. Kf1 {[%clk 0:00:31.7]} 39... Bb4 {[%clk 0:00:28.6]} 40. Kg2
{[%clk 0:00:28.8]} 40... Ke5 {[%clk 0:00:28]} 41. Be8 {[%clk 0:00:28]} 41... Kf6
{[%clk 0:00:24.6]} 42. Kg3 {[%clk 0:00:26.6]} 42... Ke7 {[%clk 0:00:23.2]} 43.
Ba4 {[%clk 0:00:26.2]} 43... Bd6+ {[%clk 0:00:23.2]} 44. Kg2 {[%clk 0:00:25.4]}
44... Be5 {[%clk 0:00:23.4]} 45. Kh3 {[%clk 0:00:22.8]} 45... Bf6 {[%clk
0:00:23.2]} 46. Kg3 {[%clk 0:00:20.6]} 46... e5 {[%clk 0:00:20.3]} 47. Bc6
{[%clk 0:00:19.6]} 47... Ke6 {[%clk 0:00:20.6]} 48. Kh3 {[%clk 0:00:19.3]} 48...
Be7 {[%clk 0:00:19.9]} 49. Kg3 {[%clk 0:00:18.9]} 49... f6 {[%clk 0:00:19.6]}
50. Bb7 {[%clk 0:00:16.5]} 50... Bb4 {[%clk 0:00:19.4]} 51. Kh3 {[%clk
0:00:16.7]} 51... Kd6 {[%clk 0:00:18.3]} 52. Kg2 {[%clk 0:00:16.1]} 52... Bc5
{[%clk 0:00:18.5]} 53. Kg3 {[%clk 0:00:16]} 53... Bb6 {[%clk 0:00:18.7]} 54. Kg2
{[%clk 0:00:16.4]} 54... Bc5 {[%clk 0:00:18.2]} 55. Kg3 {[%clk 0:00:16.6]} 55...
Ba3 {[%clk 0:00:16.8]} 56. Kg2 {[%clk 0:00:16.4]} 56... Bc5 {[%clk 0:00:16.6]}
1/2-1/2

[Event "Late-Titled-Tuesday-Blitz-February-06-2024"]
[Site "Chess.com"]
[Date "2024.02.06"]
[Round "1"]
[White "Lion_DL"]
[Black "goldihouse"]
[Result "1-0"]
[WhiteElo "2327"]
[BlackElo "2616"]
[TimeControl "180+1"]
[EndTime "14:07:35 PST"]
[Termination "Lion_DL won by checkmate"]

1. d4 {[%clk 0:03:00.9]} 1... Nf6 {[%clk 0:03:00.2]} 2. c4 {[%clk 0:03:00.7]}
2... e6 {[%clk 0:03:00.4]} 3. Nf3 {[%clk 0:03:00.3]} 3... b6 {[%clk 0:03:00.5]}
4. a3 {[%clk 0:03:00.1]} 4... c5 {[%clk 0:03:00.3]} 5. d5 {[%clk 0:02:58.6]}
5... Ba6 {[%clk 0:03:00.7]} 6. e3 {[%clk 0:02:45.8]} 6... exd5 {[%clk
0:02:57.6]} 7. cxd5 {[%clk 0:02:40.7]} 7... Bxf1 {[%clk 0:02:58.5]} 8. Kxf1
{[%clk 0:02:39.8]} 8... g6 {[%clk 0:02:58.8]} 9. Nc3 {[%clk 0:02:37.2]} 9... Bg7
{[%clk 0:02:58.9]} 10. g3 {[%clk 0:02:34]} 10... O-O {[%clk 0:02:58.5]} 11. Kg2
{[%clk 0:02:34.4]} 11... d6 {[%clk 0:02:58.8]} 12. h3 {[%clk 0:02:29.5]} 12...
Re8 {[%clk 0:02:58.6]} 13. Re1 {[%clk 0:02:28.5]} 13... a6 {[%clk 0:02:57.6]}
14. a4 {[%clk 0:02:26.2]} 14... Ne4 {[%clk 0:02:42.5]} 15. Nxe4 {[%clk
0:02:22.4]} 15... Rxe4 {[%clk 0:02:43.4]} 16. Qc2 {[%clk 0:02:16.1]} 16... Re8
{[%clk 0:02:32.1]} 17. Bd2 {[%clk 0:02:09.5]} 17... Nd7 {[%clk 0:02:29.4]} 18.
Bc3 {[%clk 0:02:06.4]} 18... Rb8 {[%clk 0:02:29]} 19. Bxg7 {[%clk 0:02:03.8]}
19... Kxg7 {[%clk 0:02:29.9]} 20. e4 {[%clk 0:01:59.2]} 20... Qf6 {[%clk
0:02:28.1]} 21. Rab1 {[%clk 0:01:47.4]} 21... b5 {[%clk 0:02:26.5]} 22. axb5
{[%clk 0:01:43.1]} 22... axb5 {[%clk 0:02:26.2]} 23. b3 {[%clk 0:01:42]} 23...
Ra8 {[%clk 0:02:22]} 24. Nd2 {[%clk 0:01:27.4]} 24... Ra3 {[%clk 0:02:09]} 25.
f4 {[%clk 0:01:21.3]} 25... Rea8 {[%clk 0:02:08.1]} 26. Rb2 {[%clk 0:01:19.4]}
26... Qd4 {[%clk 0:01:32.3]} 27. Nf3 {[%clk 0:01:14.2]} 27... Qxb2 {[%clk
0:01:30]} 28. Qxb2+ {[%clk 0:01:14]} 28... f6 {[%clk 0:01:30.9]} 29. Kg1 {[%clk
0:00:58.3]} 29... Ra2 {[%clk 0:01:28.3]} 30. Qc3 {[%clk 0:00:58.1]} 30... b4
{[%clk 0:01:15.2]} 31. Qd3 {[%clk 0:00:54.2]} 31... Rb2 {[%clk 0:01:07.3]} 32.
Re2 {[%clk 0:00:52]} 32... Ra1+ {[%clk 0:01:04]} 33. Kg2 {[%clk 0:00:51]} 33...
Raa2 {[%clk 0:00:49]} 34. Rxb2 {[%clk 0:00:47.9]} 34... Rxb2+ {[%clk 0:00:49.9]}
35. Kf1 {[%clk 0:00:44.4]} 35... c4 {[%clk 0:00:50.4]} 36. Qxc4 {[%clk 0:00:40]}
36... Nc5 {[%clk 0:00:50.8]} 37. Qxb4 {[%clk 0:00:38.9]} 37... Rxb3 {[%clk
0:00:50.7]} 38. Qd4 {[%clk 0:00:36.1]} 38... Rxf3+ {[%clk 0:00:50.5]} 39. Kg2
{[%clk 0:00:35]} 39... Rd3 {[%clk 0:00:44.6]} 40. Qb4 {[%clk 0:00:35]} 40... g5
{[%clk 0:00:39.9]} 41. fxg5 {[%clk 0:00:32.7]} 41... fxg5 {[%clk 0:00:39.3]} 42.
Qb2+ {[%clk 0:00:29.2]} 42... Kg6 {[%clk 0:00:38.1]} 43. Qh8 {[%clk 0:00:24.1]}
43... Rd2+ {[%clk 0:00:14.4]} 44. Kf3 {[%clk 0:00:23]} 44... Rd1 {[%clk
0:00:06.8]} 45. Qg8+ {[%clk 0:00:21.8]} 45... Kf6 {[%clk 0:00:03.3]} 46. Qf8+
{[%clk 0:00:19.5]} 46... Ke5 {[%clk 0:00:03.5]} 47. Qg7# {[%clk 0:00:17.6]} 1-0

[Event "Late-Titled-Tuesday-Blitz-February-06-2024"]
[Site "Chess.com"]
[Date "2024.02.06"]
[Round "1"]
[White "vanyakuba"]
[Black "bazar-wokzal"]
[Result "1-0"]
[WhiteElo "2336"]
[BlackElo "2621"]
[TimeControl "180+1"]
[EndTime "14:07:37 PST"]
[Termination "vanyakuba won on time"]

1. e4 {[%clk 0:03:00.9]} 1... Nc6 {[%clk 0:02:52.6]} 2. Nc3 {[%clk 0:02:56.9]}
2... Nf6 {[%clk 0:02:52]} 3. Nf3 {[%clk 0:02:44.1]} 3... d5 {[%clk 0:02:51.6]}
4. exd5 {[%clk 0:02:43.6]} 4... Nxd5 {[%clk 0:02:51]} 5. Bb5 {[%clk 0:02:42.2]}
5... Nxc3 {[%clk 0:02:49.2]} 6. bxc3 {[%clk 0:02:36.9]} 6... Qd6 {[%clk
0:02:46.8]} 7. d4 {[%clk 0:02:22.8]} 7... a6 {[%clk 0:02:45.3]} 8. Bc4 {[%clk
0:02:02.7]} 8... Na5 {[%clk 0:02:41.2]} 9. Bd3 {[%clk 0:02:00.6]} 9... Bg4
{[%clk 0:02:40]} 10. h3 {[%clk 0:01:59.5]} 10... Bh5 {[%clk 0:02:38.9]} 11. g4
{[%clk 0:01:48.3]} 11... Bg6 {[%clk 0:02:38.4]} 12. Ne5 {[%clk 0:01:47.2]} 12...
e6 {[%clk 0:02:33.4]} 13. Bxg6 {[%clk 0:01:22.5]} 13... hxg6 {[%clk 0:02:32.8]}
14. Qf3 {[%clk 0:01:22.7]} 14... Qe7 {[%clk 0:02:11.9]} 15. Ba3 {[%clk
0:01:20.4]} 15... Qf6 {[%clk 0:02:05.2]} 16. Qxf6 {[%clk 0:00:43.9]} 16... gxf6
{[%clk 0:02:04.3]} 17. Bxf8 {[%clk 0:00:42.4]} 17... Kxf8 {[%clk 0:01:57.7]} 18.
Nd3 {[%clk 0:00:38.1]} 18... b6 {[%clk 0:01:40.2]} 19. h4 {[%clk 0:00:37.2]}
19... Nc4 {[%clk 0:01:35]} 20. h5 {[%clk 0:00:36.8]} 20... Ke7 {[%clk
0:01:24.9]} 21. Ke2 {[%clk 0:00:33.4]} 21... gxh5 {[%clk 0:01:21.7]} 22. gxh5
{[%clk 0:00:30.5]} 22... Rag8 {[%clk 0:01:18.8]} 23. Rh2 {[%clk 0:00:21.4]}
23... Rg5 {[%clk 0:01:14.1]} 24. Rah1 {[%clk 0:00:21.2]} 24... Rh6 {[%clk
0:01:13]} 25. Nf4 {[%clk 0:00:16.6]} 25... Ra5 {[%clk 0:01:10.8]} 26. Kd3 {[%clk
0:00:12.8]} 26... b5 {[%clk 0:00:59]} 27. Rg2 {[%clk 0:00:11.6]} 27... Rxa2
{[%clk 0:00:56]} 28. Rg7 {[%clk 0:00:11.5]} 28... Kf8 {[%clk 0:00:50.2]} 29.
Rhg1 {[%clk 0:00:11.1]} 29... Nd6 {[%clk 0:00:22.6]} 30. Rg8+ {[%clk 0:00:04.1]}
30... Ke7 {[%clk 0:00:22.4]} 31. Ra8 {[%clk 0:00:03.7]} 31... e5 {[%clk
0:00:15.4]} 32. Nd5+ {[%clk 0:00:03.6]} 32... Ke6 {[%clk 0:00:14.9]} 33. Nxc7+
{[%clk 0:00:03.7]} 33... Kf5 {[%clk 0:00:15.2]} 34. dxe5 {[%clk 0:00:04.1]}
34... fxe5 {[%clk 0:00:15]} 35. Nd5 {[%clk 0:00:03.7]} 35... Rxh5 {[%clk
0:00:12.5]} 36. Rd8 {[%clk 0:00:02.4]} 36... Ne4 {[%clk 0:00:03]} 37. Ne7+
{[%clk 0:00:02.9]} 37... Kf4 {[%clk 0:00:02.6]} 38. Nc8 {[%clk 0:00:02.9]} 1-0

[Event "Late-Titled-Tuesday-Blitz-February-06-2024"]
[Site "Chess.com"]
[Date "2024.02.06"]
[Round "1"]
[White "h4parah5"]
[Black "ImportedItalianMaple"]
[Result "1-0"]
[WhiteElo "2971"]
[BlackElo "2509"]
[TimeControl "180+1"]
[EndTime "14:07:40 PST"]
[Termination "h4parah5 won by resignation"]

1. Nf3 {[%clk 0:03:00.9]} 1... Nf6 {[%clk 0:03:00]} 2. c4 {[%clk 0:03:00.3]}
2... b6 {[%clk 0:02:56.1]} 3. Nc3 {[%clk 0:02:57.2]} 3... Bb7 {[%clk 0:02:56.1]}
4. Qc2 {[%clk 0:02:56.6]} 4... e6 {[%clk 0:02:49]} 5. e4 {[%clk 0:02:39]} 5...
d5 {[%clk 0:02:48.9]} 6. cxd5 {[%clk 0:02:38.6]} 6... exd5 {[%clk 0:02:49.5]} 7.
e5 {[%clk 0:02:39]} 7... Ne4 {[%clk 0:02:49.9]} 8. Bb5+ {[%clk 0:02:38.2]} 8...
Nd7 {[%clk 0:02:32.1]} 9. e6 {[%clk 0:02:17]} 9... fxe6 {[%clk 0:02:29.5]} 10.
Nxe4 {[%clk 0:02:16.7]} 10... dxe4 {[%clk 0:02:28.7]} 11. Ne5 {[%clk 0:02:16.1]}
11... c6 {[%clk 0:02:22.9]} 12. Bxc6 {[%clk 0:02:14.8]} 12... Bxc6 {[%clk
0:02:22.8]} 13. Qxc6 {[%clk 0:02:14.1]} 13... Rc8 {[%clk 0:02:05.6]} 14. Qxe4
{[%clk 0:02:12.4]} 14... Nxe5 {[%clk 0:02:01.2]} 15. Qxe5 {[%clk 0:02:13.3]}
15... Qd5 {[%clk 0:02:01.1]} 16. Qxd5 {[%clk 0:02:12.5]} 16... exd5 {[%clk
0:02:02]} 17. b3 {[%clk 0:01:52.3]} 17... Rc2 {[%clk 0:01:59.6]} 18. Kd1 {[%clk
0:01:51.1]} 18... Rc6 {[%clk 0:01:58.6]} 19. Bb2 {[%clk 0:01:45.3]} 19... Bc5
{[%clk 0:01:53.5]} 20. Re1+ {[%clk 0:01:40.7]} 20... Kd7 {[%clk 0:01:53.5]} 21.
Re2 {[%clk 0:01:38.7]} 21... Rf8 {[%clk 0:01:45.6]} 22. f3 {[%clk 0:01:34.1]}
22... d4 {[%clk 0:01:39.6]} 23. Rc1 {[%clk 0:01:32.6]} 23... Re6 {[%clk
0:01:33.1]} 24. Rc4 {[%clk 0:01:24.8]} 24... d3 {[%clk 0:01:12.8]} 25. Rxe6
{[%clk 0:01:15]} 25... Kxe6 {[%clk 0:01:13.7]} 26. b4 {[%clk 0:01:11.4]} 26...
Kd5 {[%clk 0:01:05.5]} 27. Rg4 {[%clk 0:01:05.4]} 27... Bf2 {[%clk 0:01:05.5]}
28. Bxg7 {[%clk 0:00:58.2]} 28... Re8 {[%clk 0:01:04.9]} 29. Kc1 {[%clk
0:00:57.5]} 29... Rc8+ {[%clk 0:00:58.9]} 30. Bc3 {[%clk 0:00:54.1]} 30... Re8
{[%clk 0:00:32.1]} 31. Kb2 {[%clk 0:00:52]} 31... Re2 {[%clk 0:00:30.1]} 32. Kb3
{[%clk 0:00:51.1]} 32... b5 {[%clk 0:00:23.3]} 33. Rg7 {[%clk 0:00:47.2]} 33...
Kc6 {[%clk 0:00:18.6]} 34. Rxh7 {[%clk 0:00:45]} 34... Be1 {[%clk 0:00:19.3]}
35. Rh6+ {[%clk 0:00:42.1]} 35... Kb7 {[%clk 0:00:19.1]} 36. Rd6 {[%clk
0:00:41.2]} 36... Bxd2 {[%clk 0:00:17.4]} 37. Bxd2 {[%clk 0:00:41]} 37... Rxd2
{[%clk 0:00:17.8]} 38. g4 {[%clk 0:00:41.5]} 38... Rxh2 {[%clk 0:00:18.1]} 39.
Rxd3 {[%clk 0:00:41]} 39... Kc6 {[%clk 0:00:16.8]} 40. Rc3+ {[%clk 0:00:40.4]}
40... Kd6 {[%clk 0:00:16]} 41. Rc5 {[%clk 0:00:41.3]} 41... a6 {[%clk
0:00:16.2]} 42. Rf5 {[%clk 0:00:40.4]} 42... Re2 {[%clk 0:00:15.3]} 43. g5
{[%clk 0:00:34.7]} 43... Re3+ {[%clk 0:00:14]} 44. Kc2 {[%clk 0:00:34.4]} 44...
Re2+ {[%clk 0:00:14.5]} 45. Kd3 {[%clk 0:00:33.3]} 45... Rxa2 {[%clk 0:00:14.9]}
46. f4 {[%clk 0:00:33.6]} 46... Rb2 {[%clk 0:00:13.9]} 47. Kc3 {[%clk
0:00:33.1]} 47... Rf2 {[%clk 0:00:12.7]} 48. Rf6+ {[%clk 0:00:31.5]} 48... Kd5
{[%clk 0:00:13.2]} 49. g6 {[%clk 0:00:31.1]} 49... Rg2 {[%clk 0:00:11.5]} 50. f5
{[%clk 0:00:30.7]} 50... Ke5 {[%clk 0:00:11.7]} 51. Rf7 {[%clk 0:00:30.5]} 51...
Rg3+ {[%clk 0:00:10.8]} 52. Kc2 {[%clk 0:00:30]} 52... Rg2+ {[%clk 0:00:11.1]}
53. Kd3 {[%clk 0:00:30.3]} 53... Rg3+ {[%clk 0:00:11.5]} 54. Ke2 {[%clk
0:00:30.5]} 54... Rg4 {[%clk 0:00:10.3]} 55. g7 {[%clk 0:00:29.3]} 55... Re4+
{[%clk 0:00:09.1]} 56. Kf3 {[%clk 0:00:28.1]} 1-0

[Event "Late-Titled-Tuesday-Blitz-February-06-2024"]
[Site "Chess.com"]
[Date "2024.02.06"]
[Round "1"]
[White "alphienothere"]
[Black "AmanteDeMoi"]
[Result "0-1"]
[WhiteElo "2223"]
[BlackElo "2604"]
[TimeControl "180+1"]
[EndTime "14:07:40 PST"]
[Termination "AmanteDeMoi won by resignation"]

1. d4 {[%clk 0:02:58.5]} 1... g6 {[%clk 0:02:42]} 2. e4 {[%clk 0:02:56.9]} 2...
Bg7 {[%clk 0:02:40.7]} 3. c3 {[%clk 0:02:54.6]} 3... c6 {[%clk 0:02:38.2]} 4.
Nf3 {[%clk 0:02:51.9]} 4... d5 {[%clk 0:02:38.3]} 5. e5 {[%clk 0:02:49]} 5... h5
{[%clk 0:02:37.3]} 6. Bd3 {[%clk 0:02:45.3]} 6... Nh6 {[%clk 0:02:37.8]} 7. Bxh6
{[%clk 0:02:39.7]} 7... Bxh6 {[%clk 0:02:36.7]} 8. O-O {[%clk 0:02:37.8]} 8...
Bg4 {[%clk 0:02:33.6]} 9. Nbd2 {[%clk 0:02:34.2]} 9... Bxd2 {[%clk 0:02:31.7]}
10. Qxd2 {[%clk 0:02:30.9]} 10... Bxf3 {[%clk 0:02:31.7]} 11. gxf3 {[%clk
0:02:30.7]} 11... e6 {[%clk 0:02:32]} 12. Kh1 {[%clk 0:02:27.6]} 12... Qh4
{[%clk 0:02:20.4]} 13. f4 {[%clk 0:02:20.8]} 13... Nd7 {[%clk 0:02:19.1]} 14. f3
{[%clk 0:02:14.2]} 14... Kf8 {[%clk 0:02:08.8]} 15. a4 {[%clk 0:02:11.1]} 15...
a5 {[%clk 0:02:07]} 16. Qe3 {[%clk 0:02:03.2]} 16... Kg7 {[%clk 0:02:05.5]} 17.
Rg1 {[%clk 0:01:59.9]} 17... Kf8 {[%clk 0:01:58.8]} 18. Rg5 {[%clk 0:01:56.7]}
18... Ke7 {[%clk 0:01:54.3]} 19. Rag1 {[%clk 0:01:47.9]} 19... Nf8 {[%clk
0:01:52.7]} 20. c4 {[%clk 0:01:37.3]} 20... Nh7 {[%clk 0:01:50.4]} 21. cxd5
{[%clk 0:01:33]} 21... cxd5 {[%clk 0:01:48.8]} 22. R5g2 {[%clk 0:01:30.1]} 22...
Rac8 {[%clk 0:01:43.5]} 23. f5 {[%clk 0:01:06.5]} 23... gxf5 {[%clk 0:01:32.1]}
24. Rg7 {[%clk 0:01:05.4]} 24... Nf8 {[%clk 0:01:18.5]} 25. Bb5 {[%clk
0:01:05.1]} 25... Rc7 {[%clk 0:00:37.4]} 26. Qa3+ {[%clk 0:01:04.6]} 26... Kd8
{[%clk 0:00:37.9]} 27. Qd6+ {[%clk 0:01:04.1]} 27... Kc8 {[%clk 0:00:36.2]} 28.
Be8 {[%clk 0:00:43.4]} 28... Qd8 {[%clk 0:00:30.9]} 29. Qxd8+ {[%clk 0:00:34.7]}
29... Kxd8 {[%clk 0:00:31.8]} 30. Bxf7 {[%clk 0:00:32.6]} 30... h4 {[%clk
0:00:25.7]} 31. h3 {[%clk 0:00:29.8]} 31... Re7 {[%clk 0:00:18.3]} 32. Bg8
{[%clk 0:00:22.3]} 32... b6 {[%clk 0:00:07.5]} 33. Rxe7 {[%clk 0:00:19.7]} 33...
Kxe7 {[%clk 0:00:08.4]} 34. Rg7+ {[%clk 0:00:17.8]} 34... Ke8 {[%clk 0:00:09]}
35. Kh2 {[%clk 0:00:14.6]} 35... Rh6 {[%clk 0:00:08.2]} 36. Rb7 {[%clk
0:00:10.7]} 36... Nd7 {[%clk 0:00:06.2]} 37. Rxb6 {[%clk 0:00:01.4]} 37... Nxb6
{[%clk 0:00:06.4]} 38. Bh7 {[%clk 0:00:01.2]} 38... Rxh7 {[%clk 0:00:06.3]} 39.
Kg2 {[%clk 0:00:02.1]} 39... Rc7 {[%clk 0:00:06.7]} 40. Kf2 {[%clk 0:00:03]}
40... Rc2+ {[%clk 0:00:07.5]} 41. Ke3 {[%clk 0:00:03.7]} 41... Rxb2 {[%clk
0:00:08.4]} 42. Kf4 {[%clk 0:00:04.6]} 42... Rg2 {[%clk 0:00:06.9]} 0-1